[Event "16th Marseille Festival 2023"]
[Site "Marseille"]
[Date "2023.12.30"]
[Round "8.3"]
[White "Philippe, Guillaume"]
[Black "Baroyan, Davit"]
[Result "1-0"]
[WhiteElo "2334"]
[BlackElo "2203"]
[PlyCount "113"]
[EventDate "2023.12.30"]
[EventType "swiss"]
[EventCountry "FRA"]
[TimeControl "5400+30"]

1. Nf3 {[%emt 0:00:12]} Nf6 {[%emt 0:00:24]} 2. e3 {[%emt 0:00:15]} d5 {[%emt 0:01:48]} 3. c4 {[%emt 0:00:06]} c6 {[%emt 0:01:39]} 4. Nc3 {[%emt 0:00:54]} Bf5 {[%emt 0:03:25]} 5. cxd5 {[%emt 0:05:26]} Nxd5 {[%emt 0:00:57]} 6. Bc4 {[%emt 0:02:35]} e6 {[%emt 0:02:46]} 7. O-O {[%emt 0:02:33]} Nd7 {[%emt 0:01:24]} 8. d4 {[%emt 0:00:15]} Bd6 {[%emt 0:01:45]} 9. Qe2 {[%emt 0:04:06]} N7f6 {[%emt 0:10:42]} 10. Rd1 {[%emt 0:03:28]} Nxc3 {[%emt 0:17:20]} 11. bxc3 {[%emt 0:00:46]} Qc7 {[%emt 0:01:12]} 12. h3 {[%emt 0:01:23]} h6 {[%emt 0:00:59]} 13. a4 {[%emt 0:00:30]} Ne4 {[%emt 0:04:09]} 14. Bb2 {[%emt 0:00:32]} O-O {[%emt 0:05:07]} 15. Bd3 {[%emt 0:00:28]} c5 {[%emt 0:05:09]} 16. Qc2 {[%emt 0:10:04]} Qc6 {[%emt 0:00:16]} 17. c4 {[%emt 0:04:44]} Bc7 {[%emt 0:02:56]} 18. dxc5 {[%emt 0:12:52]} Nxc5 {[%emt 0:03:24]} 19. Bxf5 {[%emt 0:00:49]} exf5 {[%emt 0:00:01]} 20. Rd5 {[%emt 0:00:14]} Ne6 {[%emt 0:06:52]} 21. Rxf5 {[%emt 0:02:55]} Rac8 {[%emt 0:00:47]} 22. Nd4 {[%emt 0:01:38]} Qd6 {[%emt 0:08:30]} 23. g3 {[%emt 0:01:05]} Qd7 {[%emt 0:01:40]} 24. Qe4 {[%emt 0:03:29]} Bb6 {[%emt 0:10:48]} 25. Nxe6 {[%emt 0:14:38]} Qxe6 {[%emt 0:00:18]} 26. Qg4 {[%emt 0:02:32]} g6 {[%emt 0:01:53]} 27. Rf4 {[%emt 0:00:27]} Qxg4 {[%emt 0:00:23]} 28. Rxg4 {[%emt 0:00:04]} h5 {[%emt 0:04:19]} 29. Re4 {[%emt 0:00:27]} f5 {[%emt 0:00:42]} 30. Re6 {[%emt 0:00:53]} Rxc4 {[%emt 0:01:06]} 31. Rxg6+ {[%emt 0:00:21]} Kf7 {[%emt 0:00:01]} 32. Rg7+ {[%emt 0:03:34]} Ke6 {[%emt 0:00:01]} 33. a5 {[%emt 0:01:36]} Bc7 {[%emt 0:00:14]} 34. a6 {[%emt 0:00:20]} b6 {[%emt 0:01:36]} 35. Rd1 {[%emt 0:00:23]} Rc2 {[%emt 0:02:09]} 36. Rdd7 {[%emt 0:04:41]} Rxb2 {[%emt 0:00:03]} 37. Rge7+ {[%emt 0:00:17]} Kf6 {[%emt 0:00:06]} 38. Rxc7 {[%emt 0:00:14]} Rd8 {[%emt 0:00:18]} 39. Red7 {[%emt 0:00:13]} Rg8 {[%emt 0:01:26]} 40. h4 {[%emt 0:01:46]} Ra2 {[%emt 0:00:20]} 41. Rf7+ {[%emt 0:00:38]} Ke6 {[%emt 0:00:32]} 42. Rce7+ {[%emt 0:00:15]} Kd6 {[%emt 0:00:12]} 43. Rxa7 {[%emt 0:00:04]} Rc8 {[%emt 0:00:21]} 44. Rxf5 {[%emt 0:01:10]} Rc5 {[%emt 0:00:44]} 45. Rf6+ {[%emt 0:00:21]} Ke5 {[%emt 0:00:08]} 46. Rxb6 {[%emt 0:00:07]} Ke4 {[%emt 0:00:18]} 47. Re7+ {[%emt 0:00:11]} Kf3 {[%emt 0:00:06]} 48. Rf7+ {[%emt 0:00:13]} Ke2 {[%emt 0:00:04]} 49. a7 {[%emt 0:00:29]} Rcc2 {[%emt 0:01:04]} 50. Rb8 {[%emt 0:00:40]} Rc1+ {[%emt 0:00:16]} 51. Kg2 {[%emt 0:00:05]} Rca1 {[%emt 0:00:01]} 52. Rb5 {[%emt 0:00:35]} Rxa7 {[%emt 0:00:48]} 53. Rxa7 {[%emt 0:00:14]} Rxa7 {[%emt 0:00:01]} 54. Rxh5 {[%emt 0:00:12]} Rf7 {[%emt 0:00:04]} 55. f4 {[%emt 0:00:07]} Kxe3 {[%emt 0:00:04]} 56. Re5+ {[%emt 0:00:04]} Kd4 {[%emt 0:00:05]} 57. h5 {[%emt 0:19:50] Kd5} 1-0

[Event "16th Marseille Festival 2023"]
[Site "Marseille"]
[Date "2023.12.30"]
[Round "8.4"]
[White "Vu Dinh, Adrien"]
[Black "Le Roy, Tristan"]
[Result "1-0"]
[WhiteElo "2234"]
[BlackElo "1955"]
[PlyCount "92"]
[EventDate "2023.12.30"]
[EventType "swiss"]
[EventCountry "FRA"]
[TimeControl "5400+30"]

1. e4 {[%emt 0:00:07]} e5 {[%emt 0:00:05]} 2. Nf3 {[%emt 0:00:04]} Nc6 {[%emt 0:00:05]} 3. Bc4 {[%emt 0:00:23]} Bc5 {[%emt 0:00:12]} 4. d3 {[%emt 0:03:30]} Nf6 {[%emt 0:00:57]} 5. a4 {[%emt 0:00:47]} d6 {[%emt 0:01:25]} 6. c3 {[%emt 0:01:08]} a6 {[%emt 0:00:47]} 7. b4 {[%emt 0:01:50]} Ba7 {[%emt 0:00:24]} 8. O-O {[%emt 0:03:13]} h6 {[%emt 0:03:54]} 9. Be3 {[%emt 0:00:24]} O-O {[%emt 0:01:16]} 10. Nbd2 {[%emt 0:01:53]} Re8 {[%emt 0:00:53]} 11. Re1 {[%emt 0:06:48]} Bxe3 {[%emt 0:05:21]} 12. fxe3 {[%emt 0:01:12]} Be6 {[%emt 0:03:39]} 13. Qb3 {[%emt 0:02:54]} Bxc4 {[%emt 0:06:57]} 14. Nxc4 {[%emt 0:02:43]} Ne7 {[%emt 0:03:10]} 15. Ra2 {[%emt 0:08:59]} Ng6 {[%emt 0:03:44]} 16. a5 {[%emt 0:06:25]} Qd7 {[%emt 0:06:56]} 17. Rb2 {[%emt 0:03:11]} Nf8 {[%emt 0:16:17]} 18. Nh4 {[%emt 0:03:16]} g6 {[%emt 0:01:28]} 19. Rf1 {[%emt 0:03:35]} Kg7 {[%emt 0:00:54]} 20. Rbf2 {[%emt 0:00:30]} N8h7 {[%emt 0:01:10]} 21. Nd2 {[%emt 0:03:40]} Re7 {[%emt 0:02:44]} 22. h3 {[%emt 0:00:57]} Rae8 {[%emt 0:02:15]} 23. c4 {[%emt 0:04:05]} c6 {[%emt 0:10:17]} 24. Qc3 {[%emt 0:08:49]} Nh5 {[%emt 0:06:43]} 25. Kh2 {[%emt 0:02:12]} Kg8 {[%emt 0:00:26]} 26. Qb3 {[%emt 0:07:54]} Ng7 {[%emt 0:02:23]} 27. Nb1 {[%emt 0:00:15]} Nf8 {[%emt 0:02:29]} 28. Nc3 {[%emt 0:00:14]} Nfe6 {[%emt 0:00:13]} 29. Na4 {[%emt 0:00:56]} Rd8 {[%emt 0:02:29]} 30. Nb6 {[%emt 0:05:25]} Qe8 {[%emt 0:02:38]} 31. Nf5 {[%emt 0:01:43]} gxf5 {[%emt 0:01:54]} 32. exf5 {[%emt 0:00:10]} Nxf5 {[%emt 0:01:21]} 33. Rxf5 {[%emt 0:00:07]} Kh7 {[%emt 0:01:58]} 34. Qd1 {[%emt 0:00:58]} Qg8 {[%emt 0:00:57]} 35. Qh5 {[%emt 0:02:33]} Rf8 {[%emt 0:00:27]} 36. Rf6 {[%emt 0:01:18]} Qg7 {[%emt 0:00:01]} 37. Nc8 {[%emt 0:02:48]} Rxc8 {[%emt 0:08:49]} 38. Rxf7 {[%emt 0:00:08]} Rg8 {[%emt 0:00:04]} 39. Rxe7 {[%emt 0:01:44]} Qxe7 {[%emt 0:00:22]} 40. Rf7+ {[%emt 0:00:04]} Rg7 {[%emt 0:01:07]} 41. Qf5+ {[%emt 0:00:14]} Kg8 {[%emt 0:00:48]} 42. Rxe7 {[%emt 0:00:06]} Rxe7 {[%emt 0:00:09]} 43. Qf6 {[%emt 0:00:15]} Re8 {[%emt 0:00:28]} 44. Qxh6 {[%emt 0:00:14]} Kf7 {[%emt 0:00:31]} 45. Qh5+ {[%emt 0:00:08]} Kf8 {[%emt 0:00:14]} 46. Qg6 {[%emt 0:00:24]} Ke7 {[%emt 0:01:05]} 1-0

[Event "16th Marseille Festival 2023"]
[Site "Marseille"]
[Date "2023.12.30"]
[Round "8.5"]
[White "Girel, Joseph"]
[Black "Fabre, Jean-charles"]
[Result "1-0"]
[WhiteElo "2495"]
[BlackElo "1883"]
[PlyCount "115"]
[EventDate "2023.12.30"]
[EventType "swiss"]
[EventCountry "FRA"]
[TimeControl "5400+30"]

1. e4 {[%emt 0:03:22]} e6 {[%emt 0:00:07]} 2. d4 {[%emt 0:00:19]} d5 {[%emt 0:00:14]} 3. Nc3 {[%emt 0:00:28]} Bb4 {[%emt 0:00:22]} 4. Nge2 {[%emt 0:00:22]} dxe4 {[%emt 0:00:50]} 5. a3 {[%emt 0:00:54]} Bxc3+ {[%emt 0:00:38]} 6. Nxc3 {[%emt 0:00:09]} Nc6 {[%emt 0:00:58]} 7. Bf4 {[%emt 0:00:10]} Nge7 {[%emt 0:07:19]} 8. Qd2 {[%emt 0:01:19]} e5 {[%emt 0:06:37]} 9. dxe5 {[%emt 0:03:38]} Qxd2+ {[%emt 0:00:24]} 10. Kxd2 {[%emt 0:00:28]} Bf5 {[%emt 0:04:16]} 11. Re1 {[%emt 0:01:35]} Ng6 {[%emt 0:14:02]} 12. Bg3 {[%emt 0:00:23]} O-O-O+ {[%emt 0:02:04]} 13. Kc1 {[%emt 0:00:06]} Ncxe5 {[%emt 0:04:30]} 14. Nxe4 {[%emt 0:01:23]} f6 {[%emt 0:55:09]} 15. f4 {[%emt 0:02:02]} Nc6 {[%emt 0:00:00]} 16. Bd3 {[%emt 0:02:29]} Kb8 {[%emt 0:00:00]} 17. Re3 {[%emt 0:01:37]} Rhe8 {[%emt 0:00:00]} 18. Rhe1 {[%emt 0:00:09]} Re7 {[%emt 0:00:00]} 19. h3 {[%emt 0:03:22]} h5 {[%emt 0:00:00]} 20. Kd2 {[%emt 0:02:38]} h4 {[%emt 0:00:00]} 21. Bh2 {[%emt 0:00:20]} Red7 {[%emt 0:00:00]} 22. b4 {[%emt 0:03:12]} a5 {[%emt 0:00:00]} 23. Nc5 {[%emt 0:07:22]} Rd5 {[%emt 0:00:00]} 24. c4 {[%emt 0:03:12]} R5d6 {[%emt 0:00:00]} 25. Kc3 {[%emt 0:01:30]} Bxd3 {[%emt 0:00:00]} 26. Nxd3 {[%emt 0:00:55]} axb4+ {[%emt 0:06:00]} 27. axb4 {[%emt 0:00:08]} Nd4 {[%emt 0:00:00]} 28. Nc5 {[%emt 0:02:30]} Nf5 {[%emt 0:00:00]} 29. Re8 {[%emt 0:03:18]} b6 {[%emt 0:00:00]} 30. Rxd8+ {[%emt 0:00:33]} Rxd8 {[%emt 0:00:00]} 31. Nd3 {[%emt 0:00:25]} Kb7 {[%emt 0:00:00]} 32. b5 {[%emt 0:04:22]} Ra8 {[%emt 0:00:00]} 33. Kb2 {[%emt 0:01:58]} Rd8 {[%emt 0:00:00]} 34. Kc2 {[%emt 0:00:15]} Ra8 {[%emt 0:00:00]} 35. Kb3 {[%emt 0:11:41]} Rd8 {[%emt 0:00:00]} 36. Kc3 {[%emt 0:00:11]} Ra8 {[%emt 0:00:00]} 37. c5 {[%emt 0:00:27]} bxc5 {[%emt 0:00:00]} 38. Nxc5+ {[%emt 0:00:07]} Kb6 {[%emt 0:00:00]} 39. Na6 {[%emt 0:03:44]} Rc8 {[%emt 0:03:54]} 40. Kb4 {[%emt 0:00:38]} c5+ {[%emt 0:01:07]} 41. Nxc5 {[%emt 0:00:39]} Nd4 {[%emt 0:01:13]} 42. Rc1 {[%emt 0:05:48]} Nxb5 {[%emt 0:00:50]} 43. Na4+ {[%emt 0:00:36]} Kb7 {[%emt 0:00:05]} 44. Rxc8 {[%emt 0:00:05]} Kxc8 {[%emt 0:00:02]} 45. Kxb5 {[%emt 0:00:06]} Kd7 {[%emt 0:00:12]} 46. Nc5+ {[%emt 0:00:15]} Ke7 {[%emt 0:01:03]} 47. Kc6 {[%emt 0:01:01]} Kf7 {[%emt 0:00:27]} 48. Kd5 {[%emt 0:00:37]} Ne7+ {[%emt 0:00:20]} 49. Kd4 {[%emt 0:00:46]} Kg6 {[%emt 0:00:24]} 50. Ke4 {[%emt 0:00:32]} Kh5 {[%emt 0:01:23]} 51. Nd7 {[%emt 0:00:48]} Ng8 {[%emt 0:00:35]} 52. Bg1 {[%emt 0:00:32]} g6 {[%emt 0:00:44]} 53. Bd4 {[%emt 0:00:19]} f5+ {[%emt 0:00:17]} 54. Kf3 {[%emt 0:00:28]} Ne7 {[%emt 0:00:30]} 55. Bf6 {[%emt 0:00:06]} Nd5 {[%emt 0:00:19]} 56. Bg5 {[%emt 0:00:16]} Nxf4 {[%emt 0:00:28]} 57. Bxf4 {[%emt 0:00:07]} g5 {[%emt 0:00:11]} 58. Bxg5 {[%emt 0:00:06]} 1-0

[Event "16th Marseille Festival 2023"]
[Site "Marseille"]
[Date "2023.12.30"]
[Round "8.6"]
[White "Charlier, Antoine"]
[Black "Petrosyan, Armen"]
[Result "1/2-1/2"]
[WhiteElo "2147"]
[BlackElo "2368"]
[PlyCount "103"]
[EventDate "2023.12.30"]
[EventType "swiss"]
[EventCountry "FRA"]
[TimeControl "5400+30"]

1. d4 {[%emt 0:02:39]} d5 {[%emt 0:00:06]} 2. c4 {[%emt 0:00:11]} e6 {[%emt 0:00:05]} 3. Nc3 {[%emt 0:00:13]} a6 {[%emt 0:00:06]} 4. cxd5 {[%emt 0:00:15]} exd5 {[%emt 0:00:05]} 5. Bf4 {[%emt 0:00:12]} Nf6 {[%emt 0:00:05]} 6. e3 {[%emt 0:00:35]} c5 {[%emt 0:00:10]} 7. Nf3 {[%emt 0:01:16]} Nc6 {[%emt 0:00:12]} 8. Be2 {[%emt 0:02:56]} h6 {[%emt 0:16:54]} 9. h3 {[%emt 0:03:52]} c4 {[%emt 0:00:49]} 10. Ne5 {[%emt 0:04:07]} Qb6 {[%emt 0:04:18]} 11. Qc2 {[%emt 0:05:37]} Be6 {[%emt 0:08:37]} 12. O-O {[%emt 0:03:22]} Be7 {[%emt 0:02:31]} 13. Rad1 {[%emt 0:12:11]} Rd8 {[%emt 0:07:49]} 14. Bf3 {[%emt 0:02:38]} Bd6 {[%emt 0:10:47]} 15. Nxc6 {[%emt 0:15:04]} bxc6 {[%emt 0:00:48]} 16. Bxd6 {[%emt 0:01:43]} Rxd6 {[%emt 0:00:05]} 17. Na4 {[%emt 0:01:02]} Qb5 {[%emt 0:05:14]} 18. b3 {[%emt 0:02:28]} cxb3 {[%emt 0:00:45]} 19. Qxb3 {[%emt 0:00:37]} O-O {[%emt 0:06:14]} 20. Nc5 {[%emt 0:02:16]} Bf5 {[%emt 0:01:11]} 21. Rd2 {[%emt 0:09:19]} Ne4 {[%emt 0:19:48]} 22. Bxe4 {[%emt 0:11:44]} dxe4 {[%emt 0:00:04]} 23. Rb2 {[%emt 0:01:20]} Rg6 {[%emt 0:07:48]} 24. Qxb5 {[%emt 0:04:01]} axb5 {[%emt 0:00:09]} 25. Kh2 {[%emt 0:00:28]} Rd6 {[%emt 0:00:15]} 26. a4 {[%emt 0:01:05]} bxa4 {[%emt 0:00:06]} 27. Nxa4 {[%emt 0:00:08]} Be6 {[%emt 0:00:07]} 28. Nc5 {[%emt 0:01:32]} Bd5 {[%emt 0:00:15]} 29. Rfb1 {[%emt 0:01:46]} f5 {[%emt 0:00:35]} 30. Rb8 {[%emt 0:01:51]} g5 {[%emt 0:00:17]} 31. Rxf8+ {[%emt 0:00:57]} Kxf8 {[%emt 0:00:04]} 32. Kg3 {[%emt 0:02:48]} Kg7 {[%emt 0:00:32]} 33. Rb7+ {[%emt 0:00:48]} Kg8 {[%emt 0:02:58]} 34. Rb8+ {[%emt 0:00:20]} Kf7 {[%emt 0:00:31]} 35. Rb7+ {[%emt 0:00:09]} Ke8 {[%emt 0:01:48]} 36. Na6 {[%emt 0:02:53]} Kf8 {[%emt 0:01:52]} 37. Nb4 {[%emt 0:00:47]} Rf6 {[%emt 0:04:20]} 38. Nxd5 {[%emt 0:01:12]} cxd5 {[%emt 0:00:03]} 39. Kh2 {[%emt 0:03:02]} f4 {[%emt 0:00:25]} 40. Kg1 {[%emt 0:00:30]} Ra6 {[%emt 0:00:42]} 41. Rb5 {[%emt 0:00:34]} Ra1+ {[%emt 0:00:28]} 42. Kh2 {[%emt 0:00:00]} Rf1 {[%emt 0:00:37]} 43. exf4 {[%emt 0:00:32]} gxf4 {[%emt 0:00:05]} 44. Rxd5 {[%emt 0:00:38]} Rxf2 {[%emt 0:00:06]} 45. Kg1 {[%emt 0:00:30]} e3 {[%emt 0:00:13]} 46. Re5 {[%emt 0:00:44]} Rd2 {[%emt 0:00:56]} 47. Kf1 {[%emt 0:00:31]} Rxd4 {[%emt 0:00:42]} 48. g3 {[%emt 0:00:30]} Rd1+ {[%emt 0:00:29]} 49. Kg2 {[%emt 0:00:24]} Rd2+ {[%emt 0:00:09]} 50. Kg1 {[%emt 0:00:31]} Rd1+ {[%emt 0:01:35]} 51. Kg2 {[%emt 0:00:06]} Rd2+ {[%emt 0:00:09]} 52. Kg1 {[%emt 0:00:11]} 1/2-1/2

[Event "16th Marseille Festival 2023"]
[Site "Marseille"]
[Date "2023.12.30"]
[Round "8.7"]
[White "De Carvalho Massabo, Raphael"]
[Black "Malka, Samuel"]
[Result "0-1"]
[WhiteElo "2137"]
[BlackElo "2201"]
[PlyCount "74"]
[EventDate "2023.12.30"]
[EventType "swiss"]
[EventCountry "FRA"]
[TimeControl "5400+30"]

1. e4 {[%emt 0:00:01]} c5 {[%emt 0:06:59]} 2. Nf3 {[%emt 0:00:15]} d6 {[%emt 0:00:28]} 3. Bb5+ {[%emt 0:00:24]} Nc6 {[%emt 0:00:26]} 4. O-O {[%emt 0:00:17]} Bd7 {[%emt 0:00:22]} 5. Re1 {[%emt 0:00:21]} Nf6 {[%emt 0:00:20]} 6. c3 {[%emt 0:00:05]} a6 {[%emt 0:00:02]} 7. Bxc6 {[%emt 0:00:07]} Bxc6 {[%emt 0:01:18]} 8. d4 {[%emt 0:00:39]} Bxe4 {[%emt 0:26:01]} 9. Bg5 {[%emt 0:00:20]} Qd7 {[%emt 0:02:52]} 10. Bxf6 {[%emt 0:00:56]} Bxf3 {[%emt 0:00:10]} 11. Qxf3 {[%emt 0:00:05]} gxf6 {[%emt 0:00:14]} 12. dxc5 {[%emt 0:04:37]} d5 {[%emt 0:05:53]} 13. Qxf6 {[%emt 0:02:30]} Rg8 {[%emt 0:00:10]} 14. Qf3 {[%emt 0:04:58]} e6 {[%emt 0:07:14]} 15. b4 {[%emt 0:00:31]} Bh6 {[%emt 0:00:55]} 16. Qd3 {[%emt 0:02:41]} O-O-O {[%emt 0:05:22]} 17. Na3 {[%emt 0:02:33]} Qa4 {[%emt 0:10:50]} 18. Nc2 {[%emt 0:00:28]} Rg6 {[%emt 0:00:47]} 19. Nd4 {[%emt 0:01:20]} Rdg8 {[%emt 0:02:35]} 20. g3 {[%emt 0:00:05]} Bg7 {[%emt 0:00:16]} 21. Nb3 {[%emt 0:05:12]} h5 {[%emt 0:07:00]} 22. Na5 {[%emt 0:02:33]} Qb5 {[%emt 0:01:12]} 23. Qf3 {[%emt 0:00:36]} Rf6 {[%emt 0:01:31]} 24. Qe3 {[%emt 0:00:13]} Bh6 {[%emt 0:00:38]} 25. Qd4 {[%emt 0:00:05]} Rf3 {[%emt 0:02:11]} 26. Rad1 {[%emt 0:05:03]} Bg7 {[%emt 0:02:35]} 27. Qh4 {[%emt 0:11:11]} Bxc3 {[%emt 0:00:07]} 28. c6 {[%emt 0:04:48]} bxc6 {[%emt 0:03:03]} 29. Rc1 {[%emt 0:01:27]} Qxb4 {[%emt 0:04:07]} 30. Qxb4 {[%emt 0:00:30]} Bxb4 {[%emt 0:00:05]} 31. Nxc6 {[%emt 0:00:14]} Bxe1 {[%emt 0:00:37]} 32. Ne7+ {[%emt 0:00:15]} Kd7 {[%emt 0:02:11]} 33. Nxg8 {[%emt 0:00:07]} Bxf2+ {[%emt 0:00:52]} 34. Kg2 {[%emt 0:00:03]} Rf5 {[%emt 0:00:01]} 35. Rb1 {[%emt 0:00:57]} Bc5 {[%emt 0:01:10]} 36. Rb8 {[%emt 0:01:37]} Rf2+ {[%emt 0:01:25]} 37. Kh3 {[%emt 0:00:02]} d4 {[%emt 0:01:33]} 0-1

[Event "16th Marseille Festival 2023"]
[Site "Marseille"]
[Date "2023.12.30"]
[Round "8.8"]
[White "Avanesyan, Davit"]
[Black "Bremond, Pascal"]
[Result "1-0"]
[WhiteElo "2142"]
[BlackElo "1894"]
[PlyCount "89"]
[EventDate "2023.12.30"]
[EventType "swiss"]
[EventCountry "FRA"]
[TimeControl "5400+30"]

1. Nf3 {[%emt 0:00:08]} Nf6 {[%emt 0:00:32]} 2. g3 {[%emt 0:00:07]} c5 {[%emt 0:00:05]} 3. Bg2 {[%emt 0:00:00]} Nc6 {[%emt 0:01:45]} 4. O-O {[%emt 0:00:01]} e5 {[%emt 0:00:42]} 5. d3 {[%emt 0:00:03]} d5 {[%emt 0:00:24]} 6. e4 {[%emt 0:00:04]} dxe4 {[%emt 0:01:16]} 7. dxe4 {[%emt 0:00:12]} Qxd1 {[%emt 0:00:06]} 8. Rxd1 {[%emt 0:00:06]} Bg4 {[%emt 0:08:11]} 9. Re1 {[%emt 0:04:15]} h6 {[%emt 0:03:56]} 10. c3 {[%emt 0:00:21]} O-O-O {[%emt 0:02:20]} 11. Nbd2 {[%emt 0:02:49]} Nd7 {[%emt 0:02:41]} 12. Nc4 {[%emt 0:09:57]} f6 {[%emt 0:02:04]} 13. a4 {[%emt 0:14:19]} Be6 {[%emt 0:00:36]} 14. Bf1 {[%emt 0:00:07]} Nb6 {[%emt 0:12:56]} 15. Nfd2 {[%emt 0:06:57]} Nxc4 {[%emt 0:01:08]} 16. Nxc4 {[%emt 0:00:32]} Be7 {[%emt 0:03:41]} 17. a5 {[%emt 0:04:32]} Rd7 {[%emt 0:02:43]} 18. Be3 {[%emt 0:01:29]} Rhd8 {[%emt 0:01:04]} 19. Rec1 {[%emt 0:03:00]} Kb8 {[%emt 0:01:12]} 20. Re1 {[%emt 0:09:24]} Bg4 {[%emt 0:02:43]} 21. h3 {[%emt 0:01:02]} Bh5 {[%emt 0:03:01]} 22. g4 {[%emt 0:00:18]} Bf7 {[%emt 0:00:27]} 23. f3 {[%emt 0:00:37]} h5 {[%emt 0:02:02]} 24. Be2 {[%emt 0:00:09]} Rh8 {[%emt 0:00:38]} 25. Kg2 {[%emt 0:00:06]} Bg6 {[%emt 0:08:55]} 26. Ra4 {[%emt 0:06:05]} Rdd8 {[%emt 0:16:55]} 27. Raa1 {[%emt 0:06:47]} hxg4 {[%emt 0:00:26]} 28. hxg4 {[%emt 0:00:05]} Rh7 {[%emt 0:00:09]} 29. Rh1 {[%emt 0:00:16]} Rdh8 {[%emt 0:00:07]} 30. Rxh7 {[%emt 0:00:05]} Rxh7 {[%emt 0:00:06]} 31. Rd1 {[%emt 0:00:24]} Kc7 {[%emt 0:00:24]} 32. Na3 {[%emt 0:00:27]} Rh8 {[%emt 0:04:17]} 33. Nb5+ {[%emt 0:00:41]} Kc8 {[%emt 0:00:22]} 34. Nd6+ {[%emt 0:00:57]} Bxd6 {[%emt 0:00:27]} 35. Rxd6 {[%emt 0:00:05]} Nxa5 {[%emt 0:01:17]} 36. Bxc5 {[%emt 0:00:09]} b6 {[%emt 0:04:41]} 37. Ba3 {[%emt 0:00:51]} Bf7 {[%emt 0:01:46]} 38. Bb5 {[%emt 0:02:22]} Rd8 {[%emt 0:01:43]} 39. g5 {[%emt 0:00:36]} Rxd6 {[%emt 0:04:56]} 40. Bxd6 {[%emt 0:00:04]} fxg5 {[%emt 0:00:55]} 41. Bxe5 {[%emt 0:00:17]} Nc4 {[%emt 0:00:48]} 42. Bxg7 {[%emt 0:00:04]} Ne3+ {[%emt 0:00:32]} 43. Kg3 {[%emt 0:00:22]} Kb7 {[%emt 0:00:34]} 44. Bd4 {[%emt 0:01:45]} Nd1 {[%emt 0:03:28]} 45. c4 {[%emt 0:00:07]} 1-0

[Event "16th Marseille Festival 2023"]
[Site "Marseille"]
[Date "2023.12.30"]
[Round "9.1"]
[White "Gusain, Himal"]
[Black "Vu Dinh, Adrien"]
[Result "1-0"]
[WhiteElo "2457"]
[BlackElo "2234"]
[PlyCount "53"]
[EventDate "2023.12.30"]
[EventType "swiss"]
[EventCountry "FRA"]
[TimeControl "5400+30"]

1. Nf3 {[%emt 0:12:19]} Nf6 {[%emt 0:00:05]} 2. b3 {[%emt 0:00:04]} c5 {[%emt 0:00:12]} 3. Bb2 {[%emt 0:00:06]} Nc6 {[%emt 0:00:03]} 4. c4 {[%emt 0:00:15]} d5 {[%emt 0:00:59]} 5. cxd5 {[%emt 0:00:16]} Nxd5 {[%emt 0:00:08]} 6. g3 {[%emt 0:00:10]} f6 {[%emt 0:05:07]} 7. Bg2 {[%emt 0:01:38]} e5 {[%emt 0:00:13]} 8. O-O {[%emt 0:00:09]} Be6 {[%emt 0:05:31]} 9. e3 {[%emt 0:00:35]} Be7 {[%emt 0:09:04]} 10. Qe2 {[%emt 0:08:46]} Nc7 {[%emt 0:07:21]} 11. Rd1 {[%emt 0:01:03]} Qc8 {[%emt 0:21:58]} 12. Nc3 {[%emt 0:06:23]} O-O {[%emt 0:00:35]} 13. d4 {[%emt 0:04:09]} cxd4 {[%emt 0:02:12]} 14. exd4 {[%emt 0:00:43]} exd4 {[%emt 0:00:11]} 15. Nxd4 {[%emt 0:00:19]} Nxd4 {[%emt 0:03:10]} 16. Rxd4 {[%emt 0:00:51]} Bc5 {[%emt 0:11:04]} 17. Rh4 {[%emt 0:07:46]} Bb6 {[%emt 0:06:29]} 18. Na4 {[%emt 0:04:12]} Qe8 {[%emt 0:10:16]} 19. Nxb6 {[%emt 0:03:03]} axb6 {[%emt 0:01:02]} 20. Qc2 {[%emt 0:00:06]} Qg6 {[%emt 0:10:51]} 21. Qxc7 {[%emt 0:00:26]} Rxa2 {[%emt 0:00:18]} 22. Rxa2 {[%emt 0:01:42]} Qb1+ {[%emt 0:00:14]} 23. Bf1 {[%emt 0:01:46]} Qxa2 {[%emt 0:00:07]} 24. Bc4 {[%emt 0:00:28]} Qxb2 {[%emt 0:02:06]} 25. Bxe6+ {[%emt 0:00:07]} Kh8 {[%emt 0:00:02]} 26. Bf5 {[%emt 0:00:31]} Qc1+ {[%emt 0:00:42]} 27. Qxc1 {[%emt 0:46:07]} 1-0